[Event "*** Titled Tuesday Blitz"]
[Site "Chess.com"]
[Date "2019.06.04"]
[Round "6"]
[White "Caterpiller35"]
[Black "Karacsonyi_Gellert"]
[Result "1-0"]
[WhiteElo "2440"]
[BlackElo "2538"]
[TimeControl "180+2"]
[EndTime "14:18:27 PDT"]
[Termination "Caterpiller35 won by resignation"]

1. d4 {[%clk 0:03:01.9]} 1... Nf6 {[%clk 0:03:00.3]} 2. Bg5 {[%clk 0:03:02.5]}
2... d5 {[%clk 0:03:00.4]} 3. e3 {[%clk 0:03:02.8]} 3... c6 {[%clk 0:02:59.9]}
4. Nd2 {[%clk 0:02:54.4]} 4... g6 {[%clk 0:03:00.8]} 5. Ngf3 {[%clk 0:02:50]}
5... Bg7 {[%clk 0:03:01.4]} 6. Be2 {[%clk 0:02:47]} 6... O-O {[%clk 0:03:02.6]}
7. c4 {[%clk 0:02:41.4]} 7... dxc4 {[%clk 0:03:01.5]} 8. Bxc4 {[%clk 0:02:38.8]}
8... Nbd7 {[%clk 0:02:59]} 9. O-O {[%clk 0:02:33.2]} 9... c5 {[%clk 0:02:57.3]}
10. Rc1 {[%clk 0:02:30.5]} 10... cxd4 {[%clk 0:02:57.6]} 11. Nxd4 {[%clk
0:02:25.1]} 11... Nb6 {[%clk 0:02:58]} 12. Bb3 {[%clk 0:02:21.3]} 12... Nbd5
{[%clk 0:02:43.2]} 13. h3 {[%clk 0:02:14.8]} 13... e5 {[%clk 0:02:38]} 14. N4f3
{[%clk 0:02:10.4]} 14... Qa5 {[%clk 0:02:24.2]} 15. Nc4 {[%clk 0:02:06.1]} 15...
Qa6 {[%clk 0:02:23]} 16. Ncxe5 {[%clk 0:02:03.4]} 16... Be6 {[%clk 0:02:21.6]}
17. Nd3 {[%clk 0:01:53.1]} 17... Rfd8 {[%clk 0:02:14.1]} 18. Nc5 {[%clk
0:01:53.6]} 18... Qb6 {[%clk 0:01:58.3]} 19. Nxe6 {[%clk 0:01:49.6]} 19... Qxe6
{[%clk 0:01:55.2]} 20. Bxf6 {[%clk 0:01:46.5]} 20... Bxf6 {[%clk 0:01:54.8]} 21.
Rc5 {[%clk 0:01:47.4]} 21... Nxe3 {[%clk 0:01:09.5]} 22. Qc1 {[%clk 0:01:46.6]}
22... Nd5 {[%clk 0:00:43.2]} 23. Rd1 {[%clk 0:01:28.5]} 23... Qb6 {[%clk
0:00:07]} 24. Rdxd5 {[%clk 0:01:24.4]} 24... Re8 {[%clk 0:00:07.4]} 25. Rd7
{[%clk 0:01:22.3]} 25... Re7 {[%clk 0:00:03.3]} 26. Rxe7 {[%clk 0:01:15.3]}
26... Bxe7 {[%clk 0:00:05.2]} 27. Rc7 {[%clk 0:01:12.1]} 27... Qd6 {[%clk
0:00:03.5]} 28. Qc4 {[%clk 0:01:10.9]} 28... Rf8 {[%clk 0:00:02.3]} 29. Rxb7
{[%clk 0:01:10.9]} 29... a5 {[%clk 0:00:03.3]} 30. Qc7 {[%clk 0:01:11.2]} 30...
Qxc7 {[%clk 0:00:02.6]} 31. Rxc7 {[%clk 0:01:13.1]} 31... Bb4 {[%clk 0:00:03.8]}
32. a3 {[%clk 0:01:13.1]} 32... Bd6 {[%clk 0:00:04.9]} 33. Rd7 {[%clk
0:01:14.4]} 33... Bb8 {[%clk 0:00:05.2]} 34. Ng5 {[%clk 0:01:15.4]} 34... Rc8
{[%clk 0:00:05.8]} 35. g3 {[%clk 0:01:07.5]} 35... Rc1+ {[%clk 0:00:06]} 36. Kg2
{[%clk 0:01:08.6]} 36... Rb1 {[%clk 0:00:07.5]} 37. Rd8+ {[%clk 0:01:06.7]}
37... Kg7 {[%clk 0:00:09]} 38. Rxb8 {[%clk 0:01:08]} 38... Rxb2 {[%clk
0:00:09.5]} 39. Rb7 {[%clk 0:01:09]} 1-0

[Event "*** Titled Tuesday Blitz"]
[Site "Chess.com"]
[Date "2019.06.04"]
[Round "6"]
[White "Alopekos"]
[Black "Firegrizzly"]
[Result "0-1"]
[WhiteElo "2488"]
[BlackElo "2687"]
[TimeControl "180+2"]
[EndTime "14:18:27 PDT"]
[Termination "Firegrizzly won by resignation"]

1. e4 {[%clk 0:03:01.9]} 1... c5 {[%clk 0:02:59.5]} 2. Nf3 {[%clk 0:03:02.9]}
2... Nc6 {[%clk 0:03:01.4]} 3. Nc3 {[%clk 0:03:03.7]} 3... d6 {[%clk 0:03:00.2]}
4. d4 {[%clk 0:03:05]} 4... cxd4 {[%clk 0:02:59.5]} 5. Nxd4 {[%clk 0:03:06.9]}
5... Nf6 {[%clk 0:03:00.6]} 6. Bg5 {[%clk 0:03:06.6]} 6... e6 {[%clk 0:03:01.4]}
7. Qd2 {[%clk 0:03:07.7]} 7... a6 {[%clk 0:03:02.5]} 8. O-O-O {[%clk 0:03:08.7]}
8... Bd7 {[%clk 0:03:03.3]} 9. f4 {[%clk 0:03:07.8]} 9... h6 {[%clk 0:03:04.2]}
10. Bh4 {[%clk 0:03:08.4]} 10... g5 {[%clk 0:03:05.1]} 11. fxg5 {[%clk
0:03:08.8]} 11... Ng4 {[%clk 0:03:06.6]} 12. Be2 {[%clk 0:02:57.9]} 12... Nge5
{[%clk 0:02:59.6]} 13. Nf3 {[%clk 0:02:57.6]} 13... Be7 {[%clk 0:02:50.9]} 14.
Rhg1 {[%clk 0:02:58.2]} 14... hxg5 {[%clk 0:02:50.9]} 15. Bxg5 {[%clk
0:02:56.5]} 15... f6 {[%clk 0:02:47.8]} 16. Nxe5 {[%clk 0:02:14.4]} 16... Nxe5
{[%clk 0:02:45.6]} 17. Bh6 {[%clk 0:02:15.7]} 17... Bc6 {[%clk 0:02:26.6]} 18.
Bg7 {[%clk 0:02:02]} 18... Rh7 {[%clk 0:02:23.9]} 19. Bh6 {[%clk 0:01:53.1]}
19... Kd7 {[%clk 0:02:14.4]} 20. g4 {[%clk 0:01:29.2]} 20... b5 {[%clk
0:02:06.3]} 21. a3 {[%clk 0:01:10.8]} 21... Qb6 {[%clk 0:01:51.5]} 22. Be3
{[%clk 0:01:00.4]} 22... Qb7 {[%clk 0:01:51.4]} 23. Bc5 {[%clk 0:00:35.1]} 23...
Rd8 {[%clk 0:01:30.8]} 24. Qf4 {[%clk 0:00:21]} 24... Kc8 {[%clk 0:01:27.9]} 25.
Be3 {[%clk 0:00:10.8]} 25... Rdh8 {[%clk 0:01:20.2]} 26. Rg2 {[%clk 0:00:08.9]}
26... Kc7 {[%clk 0:01:11.1]} 27. Kb1 {[%clk 0:00:08.2]} 27... a5 {[%clk
0:01:11.2]} 28. Qf2 {[%clk 0:00:02.9]} 28... Rh3 {[%clk 0:01:10]} 29. Bd4 {[%clk
0:00:02.1]} 29... b4 {[%clk 0:01:08.9]} 30. axb4 {[%clk 0:00:04]} 30... axb4
{[%clk 0:01:09.5]} 31. Na2 {[%clk 0:00:05.6]} 31... Ra8 {[%clk 0:01:05.3]} 32.
Bxe5 {[%clk 0:00:04.6]} 32... dxe5 {[%clk 0:01:05.6]} 33. Rg3 {[%clk 0:00:06.1]}
33... Rxg3 {[%clk 0:01:04.5]} 34. Qxg3 {[%clk 0:00:06.9]} 34... Bxe4 {[%clk
0:00:57.5]} 35. Bd3 {[%clk 0:00:08]} 35... Bd5 {[%clk 0:00:58.1]} 36. b3 {[%clk
0:00:04]} 36... Qa7 {[%clk 0:00:58.4]} 0-1

[Event "*** Titled Tuesday Blitz"]
[Site "Chess.com"]
[Date "2019.06.04"]
[Round "6"]
[White "mishanick"]
[Black "volcanoexplorer"]
[Result "1-0"]
[WhiteElo "2998"]
[BlackElo "2600"]
[TimeControl "180+2"]
[EndTime "14:18:31 PDT"]
[Termination "mishanick won on time"]

1. d4 {[%clk 0:03:01.9]} 1... Nf6 {[%clk 0:03:01.3]} 2. c4 {[%clk 0:03:03.6]}
2... e6 {[%clk 0:03:02.2]} 3. Nf3 {[%clk 0:03:05.3]} 3... b6 {[%clk 0:03:02.9]}
4. a3 {[%clk 0:03:05.7]} 4... Bb7 {[%clk 0:03:02.7]} 5. Nc3 {[%clk 0:03:06.4]}
5... Be7 {[%clk 0:02:58.8]} 6. d5 {[%clk 0:03:07.7]} 6... exd5 {[%clk
0:02:53.6]} 7. cxd5 {[%clk 0:03:09.6]} 7... d6 {[%clk 0:02:53.6]} 8. e4 {[%clk
0:03:11]} 8... O-O {[%clk 0:02:53.9]} 9. Bd3 {[%clk 0:03:12.1]} 9... Nbd7 {[%clk
0:02:54.8]} 10. O-O {[%clk 0:03:13.7]} 10... Nc5 {[%clk 0:02:51.1]} 11. Bc2
{[%clk 0:03:14.9]} 11... a5 {[%clk 0:02:47.7]} 12. Re1 {[%clk 0:03:14.4]} 12...
Nfd7 {[%clk 0:02:47.3]} 13. Nd4 {[%clk 0:03:14.9]} 13... Bf6 {[%clk 0:02:44.2]}
14. Nc6 {[%clk 0:03:14.2]} 14... Bxc6 {[%clk 0:02:32.3]} 15. dxc6 {[%clk
0:03:16.1]} 15... Ne5 {[%clk 0:02:33.7]} 16. Qd5 {[%clk 0:03:14.5]} 16... Qe8
{[%clk 0:02:32.5]} 17. Nb5 {[%clk 0:03:01.2]} 17... Qxc6 {[%clk 0:01:49.5]} 18.
Qxc6 {[%clk 0:03:02]} 18... Nxc6 {[%clk 0:01:51.4]} 19. Nxc7 {[%clk 0:03:03.7]}
19... Nd4 {[%clk 0:01:41.3]} 20. Bd1 {[%clk 0:02:50.6]} 20... Rac8 {[%clk
0:01:30.2]} 21. Nd5 {[%clk 0:02:51.6]} 21... Nd3 {[%clk 0:01:28.9]} 22. Be3
{[%clk 0:02:49.6]} 22... Nxe1 {[%clk 0:01:13.4]} 23. Nxf6+ {[%clk 0:02:48.7]}
23... gxf6 {[%clk 0:01:15.3]} 24. Bxd4 {[%clk 0:02:50.4]} 24... Nc2 {[%clk
0:01:11.2]} 25. Bxc2 {[%clk 0:02:50.3]} 25... Rxc2 {[%clk 0:01:13.1]} 26. Bxf6
{[%clk 0:02:50.1]} 26... Re8 {[%clk 0:01:01.4]} 27. f3 {[%clk 0:02:48.7]} 27...
d5 {[%clk 0:00:31.2]} 28. Re1 {[%clk 0:02:49]} 28... dxe4 {[%clk 0:00:31]} 29.
fxe4 {[%clk 0:02:50.9]} 29... Re6 {[%clk 0:00:24]} 30. Bc3 {[%clk 0:02:47.9]}
30... Kf8 {[%clk 0:00:21.8]} 31. Re3 {[%clk 0:02:39.6]} 31... Rg6 {[%clk
0:00:19]} 32. g3 {[%clk 0:02:40.9]} 32... Rd6 {[%clk 0:00:19.7]} 33. Re1 {[%clk
0:02:40.9]} 33... Ke7 {[%clk 0:00:18.3]} 34. Rf1 {[%clk 0:02:39.8]} 34... Rh6
{[%clk 0:00:18.3]} 35. h4 {[%clk 0:02:37.7]} 35... Rg6 {[%clk 0:00:19.5]} 36.
Rf3 {[%clk 0:02:36.9]} 36... Rg4 {[%clk 0:00:20.3]} 37. Re3 {[%clk 0:02:37]}
37... Ke6 {[%clk 0:00:20.7]} 38. Kf1 {[%clk 0:02:37.6]} 38... Rg8 {[%clk
0:00:17.6]} 39. Rf3 {[%clk 0:02:36.8]} 39... Ke7 {[%clk 0:00:11.4]} 40. Ke1
{[%clk 0:02:36.8]} 40... Rg2 {[%clk 0:00:12]} 41. Be5 {[%clk 0:02:38]} 41... Rc8
{[%clk 0:00:12.9]} 42. Bc3 {[%clk 0:02:38.8]} 42... Rd8 {[%clk 0:00:12.8]} 43.
Bf6+ {[%clk 0:02:37.8]} 43... Ke8 {[%clk 0:00:14]} 44. Bxd8 {[%clk 0:02:39.7]}
44... Kxd8 {[%clk 0:00:15.9]} 45. Rxf7 {[%clk 0:02:37.2]} 45... Rxg3 {[%clk
0:00:15.9]} 46. Rxh7 {[%clk 0:02:38.8]} 46... Re3+ {[%clk 0:00:16.8]} 47. Kd2
{[%clk 0:02:40.2]} 47... Rxe4 {[%clk 0:00:18.4]} 48. h5 {[%clk 0:02:41]} 48...
Kc8 {[%clk 0:00:17.1]} 49. h6 {[%clk 0:02:42.1]} 49... Rh4 {[%clk 0:00:18.3]}
50. Ke3 {[%clk 0:02:43.3]} 50... Rh2 {[%clk 0:00:17.2]} 51. b4 {[%clk
0:02:43.9]} 51... axb4 {[%clk 0:00:14.5]} 52. axb4 {[%clk 0:02:45.8]} 52... Rh5
{[%clk 0:00:15.5]} 53. Kf4 {[%clk 0:02:46.3]} 53... Kb8 {[%clk 0:00:14.6]} 54.
Kg4 {[%clk 0:02:47.2]} 54... Rh1 {[%clk 0:00:15.6]} 55. Kf5 {[%clk 0:02:47.1]}
55... Rh4 {[%clk 0:00:15.9]} 56. Ke6 {[%clk 0:02:47.2]} 56... Rh5 {[%clk
0:00:11]} 57. b5 {[%clk 0:02:47.8]} 57... Kc8 {[%clk 0:00:05.4]} 58. Kd6 {[%clk
0:02:48.9]} 58... Rxb5 {[%clk 0:00:03.7]} 59. Rg7 {[%clk 0:02:48.2]} 59... Rh5
{[%clk 0:00:03.2]} 60. h7 {[%clk 0:02:49.5]} 60... Rh6+ {[%clk 0:00:04.7]} 61.
Kd5 {[%clk 0:02:50.3]} 61... Rh5+ {[%clk 0:00:04.9]} 62. Kc4 {[%clk 0:02:51.2]}
62... Rh4+ {[%clk 0:00:06.4]} 63. Kb5 {[%clk 0:02:52.2]} 63... Rh5+ {[%clk
0:00:08.1]} 64. Ka6 {[%clk 0:02:53.6]} 1-0

[Event "*** Titled Tuesday Blitz"]
[Site "Chess.com"]
[Date "2019.06.04"]
[Round "6"]
[White "yuki_chess123"]
[Black "LonesomeGeorge1"]
[Result "0-1"]
[WhiteElo "2168"]
[BlackElo "2384"]
[TimeControl "180+2"]
[EndTime "14:18:36 PDT"]
[Termination "LonesomeGeorge1 won by resignation"]

1. e4 {[%clk 0:02:55.1]} 1... c6 {[%clk 0:03:01]} 2. d3 {[%clk 0:02:55.4]} 2...
d5 {[%clk 0:03:02.9]} 3. Nd2 {[%clk 0:02:56.8]} 3... g6 {[%clk 0:03:03.5]} 4.
Ngf3 {[%clk 0:02:58.2]} 4... Bg7 {[%clk 0:03:04.1]} 5. g3 {[%clk 0:02:59.2]}
5... Nh6 {[%clk 0:03:03.8]} 6. Bg2 {[%clk 0:03:00.1]} 6... O-O {[%clk
0:03:05.2]} 7. O-O {[%clk 0:03:01]} 7... f6 {[%clk 0:03:06.4]} 8. c3 {[%clk
0:03:01.6]} 8... Nf7 {[%clk 0:03:06.4]} 9. exd5 {[%clk 0:03:00.1]} 9... cxd5
{[%clk 0:03:07.1]} 10. d4 {[%clk 0:03:01.6]} 10... Nc6 {[%clk 0:03:07.7]} 11.
Re1 {[%clk 0:03:01.9]} 11... e5 {[%clk 0:03:07.8]} 12. dxe5 {[%clk 0:03:02.3]}
12... fxe5 {[%clk 0:03:09.2]} 13. c4 {[%clk 0:03:01.2]} 13... e4 {[%clk
0:02:46.3]} 14. Nh4 {[%clk 0:03:01.7]} 14... g5 {[%clk 0:02:42]} 15. cxd5 {[%clk
0:03:01.8]} 15... Nce5 {[%clk 0:02:41.3]} 16. Nxe4 {[%clk 0:02:41.2]} 16... gxh4
{[%clk 0:02:41.8]} 17. Nc5 {[%clk 0:02:34.3]} 17... h3 {[%clk 0:02:35.9]} 18.
Be4 {[%clk 0:02:26.8]} 18... Nd6 {[%clk 0:02:15.7]} 19. Bh1 {[%clk 0:02:04.4]}
19... Bg4 {[%clk 0:02:13.6]} 20. Qb3 {[%clk 0:01:54.5]} 20... Nf3+ {[%clk
0:02:12.8]} 21. Bxf3 {[%clk 0:01:54]} 21... Rxf3 {[%clk 0:02:08.4]} 22. Qb4
{[%clk 0:01:55.1]} 22... h5 {[%clk 0:01:58.8]} 23. Bf4 {[%clk 0:01:51.8]} 23...
a5 {[%clk 0:01:46.4]} 24. Qa4 {[%clk 0:01:30.3]} 24... b5 {[%clk 0:01:44.1]} 25.
Qc2 {[%clk 0:01:24.3]} 25... Rxf4 {[%clk 0:01:39.2]} 26. gxf4 {[%clk 0:01:24.3]}
26... Qf6 {[%clk 0:01:31.3]} 27. Ne6 {[%clk 0:01:20.7]} 27... Bf5 {[%clk
0:01:14.3]} 28. Qc6 {[%clk 0:01:08.3]} 28... Qg6+ {[%clk 0:01:02.4]} 29. Ng5
{[%clk 0:01:07.7]} 29... Rc8 {[%clk 0:01:03.8]} 30. Qa6 {[%clk 0:01:03.7]} 30...
Bd7 {[%clk 0:00:59.6]} 31. Rac1 {[%clk 0:00:58.8]} 31... Rxc1 {[%clk 0:00:58.7]}
32. Rxc1 {[%clk 0:00:59.1]} 32... b4 {[%clk 0:00:53.8]} 33. Qa8+ {[%clk
0:00:52.6]} 33... Bf8 {[%clk 0:00:51.3]} 34. Qd8 {[%clk 0:00:49.2]} 34... Qf5
{[%clk 0:00:50.6]} 35. f3 {[%clk 0:00:47.1]} 35... Qxf4 {[%clk 0:00:49.3]} 36.
Rc7 {[%clk 0:00:37.4]} 36... Qe3+ {[%clk 0:00:20.5]} 0-1

[Event "*** Titled Tuesday Blitz"]
[Site "Chess.com"]
[Date "2019.06.04"]
[Round "6"]
[White "irregularity"]
[Black "Chebure"]
[Result "0-1"]
[WhiteElo "2604"]
[BlackElo "2805"]
[TimeControl "180+2"]
[EndTime "14:18:41 PDT"]
[Termination "Chebure won by resignation"]

1. e4 {[%clk 0:03:01.9]} 1... c5 {[%clk 0:02:59.9]} 2. Nf3 {[%clk 0:03:00.8]}
2... e6 {[%clk 0:03:00.4]} 3. Nc3 {[%clk 0:03:02.7]} 3... Nc6 {[%clk 0:02:59.8]}
4. g3 {[%clk 0:03:03.9]} 4... g6 {[%clk 0:03:00.3]} 5. Bg2 {[%clk 0:03:05]} 5...
Bg7 {[%clk 0:03:01.4]} 6. O-O {[%clk 0:03:06.7]} 6... Nge7 {[%clk 0:02:59.7]} 7.
d4 {[%clk 0:03:08]} 7... cxd4 {[%clk 0:02:59.8]} 8. Nb5 {[%clk 0:03:09.3]} 8...
O-O {[%clk 0:03:00.4]} 9. Nbxd4 {[%clk 0:03:10.6]} 9... a6 {[%clk 0:03:01]} 10.
Nb3 {[%clk 0:03:11.5]} 10... b6 {[%clk 0:02:59.1]} 11. c3 {[%clk 0:03:12]} 11...
Bb7 {[%clk 0:03:00]} 12. Bf4 {[%clk 0:03:09.6]} 12... d5 {[%clk 0:03:00.5]} 13.
e5 {[%clk 0:02:53.8]} 13... h6 {[%clk 0:02:39.6]} 14. h4 {[%clk 0:02:53.1]}
14... Nf5 {[%clk 0:02:40.4]} 15. Qd2 {[%clk 0:02:50.2]} 15... Kh7 {[%clk
0:02:40.3]} 16. Rac1 {[%clk 0:02:47.2]} 16... Rc8 {[%clk 0:02:40.2]} 17. Rfe1
{[%clk 0:02:46.6]} 17... a5 {[%clk 0:02:38]} 18. Qe2 {[%clk 0:02:41.4]} 18... a4
{[%clk 0:02:37.3]} 19. Nbd2 {[%clk 0:02:42.5]} 19... Qe7 {[%clk 0:02:25.1]} 20.
Nf1 {[%clk 0:02:42.7]} 20... d4 {[%clk 0:02:22.6]} 21. c4 {[%clk 0:02:40.7]}
21... d3 {[%clk 0:02:22.4]} 22. Qxd3 {[%clk 0:02:39.9]} 22... Rfd8 {[%clk
0:02:23.4]} 23. Qc2 {[%clk 0:02:26.4]} 23... Ncd4 {[%clk 0:02:19]} 24. Nxd4
{[%clk 0:02:27.7]} 24... Nxd4 {[%clk 0:02:20.9]} 25. Qc3 {[%clk 0:02:18.9]}
25... Bxg2 {[%clk 0:02:15.7]} 26. Kxg2 {[%clk 0:02:20.3]} 26... b5 {[%clk
0:02:12.2]} 27. b3 {[%clk 0:02:19]} 27... g5 {[%clk 0:01:44.2]} 28. hxg5 {[%clk
0:02:18]} 28... hxg5 {[%clk 0:01:46.1]} 29. Bd2 {[%clk 0:01:54.6]} 29... Qb7+
{[%clk 0:01:45.4]} 30. f3 {[%clk 0:01:55]} 30... g4 {[%clk 0:01:46.2]} 31. Qd3+
{[%clk 0:01:35.1]} 31... Kg8 {[%clk 0:01:43.5]} 32. Qe4 {[%clk 0:01:36.4]} 32...
gxf3+ {[%clk 0:01:44.2]} 33. Kf2 {[%clk 0:01:37]} 33... Qxe4 {[%clk 0:01:44.2]}
34. Rxe4 {[%clk 0:01:37.8]} 34... axb3 {[%clk 0:01:45.4]} 35. axb3 {[%clk
0:01:35.1]} 35... Nxb3 {[%clk 0:01:46.4]} 36. Rc2 {[%clk 0:01:36.6]} 36... Nc5
{[%clk 0:01:37.2]} 37. Rh4 {[%clk 0:01:25.4]} 37... Nd3+ {[%clk 0:01:35.3]} 38.
Kxf3 {[%clk 0:01:21.7]} 38... Nxe5+ {[%clk 0:01:35]} 39. Ke2 {[%clk 0:01:23.1]}
39... bxc4 {[%clk 0:01:10.2]} 40. Ne3 {[%clk 0:01:22.8]} 40... c3 {[%clk
0:00:59.1]} 41. Bxc3 {[%clk 0:01:21.7]} 41... Ng6 {[%clk 0:00:57.9]} 42. Rc4
{[%clk 0:01:21.9]} 42... Rxc4 {[%clk 0:00:57.6]} 43. Nxc4 {[%clk 0:01:22.8]}
43... Bxc3 {[%clk 0:00:51.7]} 44. Rxc3 {[%clk 0:01:24.7]} 44... Rc8 {[%clk
0:00:53.4]} 45. Kd3 {[%clk 0:01:18.4]} 45... Kg7 {[%clk 0:00:52.6]} 46. Rb3
{[%clk 0:01:17.9]} 46... Rd8+ {[%clk 0:00:49.3]} 47. Ke3 {[%clk 0:01:17.7]}
47... Ne7 {[%clk 0:00:49.7]} 48. Rb7 {[%clk 0:01:18.3]} 48... Nf5+ {[%clk
0:00:50.3]} 49. Kf4 {[%clk 0:01:16.5]} 49... Rd4+ {[%clk 0:00:50.9]} 50. Kg5
{[%clk 0:01:13.9]} 50... Rxc4 {[%clk 0:00:49.4]} 51. g4 {[%clk 0:01:15.8]} 51...
Ne3 {[%clk 0:00:48.3]} 52. Kh5 {[%clk 0:01:16.6]} 52... Nxg4 {[%clk 0:00:48.5]}
0-1

[Event "*** Titled Tuesday Blitz"]
[Site "Chess.com"]
[Date "2019.06.04"]
[Round "6"]
[White "26andrej26"]
[Black "Eliwood44"]
[Result "0-1"]
[WhiteElo "2496"]
[BlackElo "2362"]
[TimeControl "180+2"]
[EndTime "14:18:46 PDT"]
[Termination "Eliwood44 won by resignation"]

1. e4 {[%clk 0:02:40.7]} 1... e5 {[%clk 0:03:00.6]} 2. Nf3 {[%clk 0:02:38.1]}
2... Nc6 {[%clk 0:03:01.5]} 3. Bb5 {[%clk 0:02:26.8]} 3... g6 {[%clk 0:03:01.7]}
4. O-O {[%clk 0:02:13.7]} 4... Bg7 {[%clk 0:03:01.7]} 5. c3 {[%clk 0:02:14.5]}
5... a6 {[%clk 0:03:02.1]} 6. Ba4 {[%clk 0:02:14.6]} 6... Nge7 {[%clk
0:03:02.7]} 7. d4 {[%clk 0:02:14.3]} 7... exd4 {[%clk 0:03:03]} 8. cxd4 {[%clk
0:02:14.9]} 8... b5 {[%clk 0:03:03.4]} 9. Bb3 {[%clk 0:02:13.1]} 9... d6 {[%clk
0:03:02.2]} 10. h3 {[%clk 0:02:12]} 10... O-O {[%clk 0:03:02.8]} 11. Nc3 {[%clk
0:02:12.6]} 11... Na5 {[%clk 0:03:00]} 12. Bc2 {[%clk 0:02:10.5]} 12... c5
{[%clk 0:03:01]} 13. Bf4 {[%clk 0:01:53.7]} 13... Nc4 {[%clk 0:02:58.1]} 14. b3
{[%clk 0:01:51.5]} 14... Na3 {[%clk 0:02:58.9]} 15. Bd3 {[%clk 0:01:48.5]} 15...
Bb7 {[%clk 0:02:49.2]} 16. Rc1 {[%clk 0:01:44.7]} 16... cxd4 {[%clk 0:02:48.3]}
17. Ne2 {[%clk 0:01:45.1]} 17... d5 {[%clk 0:02:48.1]} 18. e5 {[%clk 0:01:43.2]}
18... f6 {[%clk 0:02:39]} 19. Nexd4 {[%clk 0:01:39.8]} 19... Qb6 {[%clk
0:02:20.4]} 20. e6 {[%clk 0:01:28.4]} 20... Rac8 {[%clk 0:02:18.2]} 21. Qd2
{[%clk 0:01:14.5]} 21... a5 {[%clk 0:02:12.8]} 22. Bh6 {[%clk 0:00:57.1]} 22...
b4 {[%clk 0:01:58]} 23. Bxg7 {[%clk 0:00:57]} 23... Kxg7 {[%clk 0:01:59.9]} 24.
h4 {[%clk 0:00:48.6]} 24... Rxc1 {[%clk 0:01:50.6]} 25. Rxc1 {[%clk 0:00:47.8]}
25... Rc8 {[%clk 0:01:52.5]} 26. Rxc8 {[%clk 0:00:38.1]} 26... Bxc8 {[%clk
0:01:54.4]} 27. Qe3 {[%clk 0:00:36.7]} 27... Qd6 {[%clk 0:01:42]} 28. h5 {[%clk
0:00:37.8]} 28... Bb7 {[%clk 0:01:28.7]} 29. hxg6 {[%clk 0:00:38.3]} 29... hxg6
{[%clk 0:01:29.5]} 30. g3 {[%clk 0:00:25.2]} 30... Bc6 {[%clk 0:01:22.7]} 31.
Nh4 {[%clk 0:00:23.9]} 31... Qe5 {[%clk 0:01:23.2]} 32. Bxg6 {[%clk 0:00:20.6]}
32... Qxe3 {[%clk 0:01:17.7]} 33. fxe3 {[%clk 0:00:21.5]} 33... Nb5 {[%clk
0:01:11.5]} 34. Nxb5 {[%clk 0:00:18.1]} 34... Bxb5 {[%clk 0:01:13.4]} 35. Nf5+
{[%clk 0:00:14.4]} 35... Kf8 {[%clk 0:01:00.2]} 36. Nxe7 {[%clk 0:00:13.5]}
36... Kxe7 {[%clk 0:01:02.1]} 37. Bf5 {[%clk 0:00:14.7]} 37... a4 {[%clk
0:01:03.4]} 38. Kf2 {[%clk 0:00:13.5]} 38... Bc4 {[%clk 0:01:03]} 39. bxc4
{[%clk 0:00:12.3]} 39... dxc4 {[%clk 0:01:04.3]} 40. Ke2 {[%clk 0:00:10.7]}
40... b3 {[%clk 0:01:01.3]} 41. axb3 {[%clk 0:00:08.3]} 41... a3 {[%clk
0:01:02.5]} 42. Bb1 {[%clk 0:00:06.6]} 42... cxb3 {[%clk 0:01:03.5]} 43. Kd2
{[%clk 0:00:07.7]} 43... a2 {[%clk 0:01:04.9]} 0-1